[Event "Live Chess"]
[Site "Chess.com"]
[Date "2023.05.20"]
[Round "-"]
[White "EdenHazard8"]
[Black "Doge_Dandolo"]
[Result "0-1"]
[WhiteElo "2084"]
[BlackElo "2037"]
[TimeControl "300"]
[EndTime "12:52:20 PDT"]
[Termination "Doge_Dandolo won by resignation"]

1. e4 {[%clk 0:04:59.1]} 1... c6 {[%clk 0:04:58.7]} 2. d4 {[%clk 0:04:58.1]}
2... d5 {[%clk 0:04:58.1]} 3. exd5 {[%clk 0:04:58]} 3... cxd5 {[%clk 0:04:57]}
4. c3 {[%clk 0:04:56.2]} 4... Nc6 {[%clk 0:04:55.1]} 5. Bd3 {[%clk 0:04:56.1]}
5... Qc7 {[%clk 0:04:53.6]} 6. Nf3 {[%clk 0:04:54.3]} 6... Bg4 {[%clk
0:04:52.3]} 7. h3 {[%clk 0:04:53.2]} 7... Bxf3 {[%clk 0:04:47.8]} 8. Qxf3 {[%clk
0:04:50.6]} 8... e6 {[%clk 0:04:47.3]} 9. Bf4 {[%clk 0:04:48.7]} 9... Bd6 {[%clk
0:04:43.5]} 10. Bxd6 {[%clk 0:04:47]} 10... Qxd6 {[%clk 0:04:42.7]} 11. O-O
{[%clk 0:04:46.2]} 11... Nf6 {[%clk 0:04:41.1]} 12. Nd2 {[%clk 0:04:44.4]} 12...
O-O {[%clk 0:04:40]} 13. Rfe1 {[%clk 0:04:33.4]} 13... Rab8 {[%clk 0:04:36.7]}
14. Nf1 {[%clk 0:04:31.1]} 14... b5 {[%clk 0:04:35]} 15. Ng3 {[%clk 0:04:29.1]}
15... Rfc8 {[%clk 0:04:29.9]} 16. Bb1 {[%clk 0:04:26.7]} 16... b4 {[%clk
0:04:20.6]} 17. Qd3 {[%clk 0:04:22.3]} 17... bxc3 {[%clk 0:04:05.2]} 18. bxc3
{[%clk 0:04:22.2]} 18... Ne7 {[%clk 0:03:55.8]} 19. Nh5 {[%clk 0:04:16.8]} 19...
Ng6 {[%clk 0:03:43.5]} 20. Nxf6+ {[%clk 0:04:15.1]} 20... gxf6 {[%clk
0:03:42.4]} 21. a4 {[%clk 0:04:03]} 21... Qc6 {[%clk 0:03:39.3]} 22. Rc1 {[%clk
0:04:00.8]} 22... Qc4 {[%clk 0:03:35.9]} 23. Qxc4 {[%clk 0:03:59.1]} 23... Rxc4
{[%clk 0:03:34.5]} 24. Bd3 {[%clk 0:03:58]} 24... Rc7 {[%clk 0:03:29.6]} 25. Bb5
{[%clk 0:03:56.6]} 25... Ne7 {[%clk 0:03:15.5]} 26. Ra3 {[%clk 0:03:51.1]} 26...
Nf5 {[%clk 0:03:11.3]} 27. Rd1 {[%clk 0:03:43.8]} 27... Rb6 {[%clk 0:03:07.1]}
28. Rd3 {[%clk 0:03:41.5]} 28... a6 {[%clk 0:03:03.4]} 29. Be8 {[%clk
0:03:38.9]} 29... Kf8 {[%clk 0:03:01]} 30. a5 {[%clk 0:03:35.3]} 30... Rb1+
{[%clk 0:02:59.1]} 31. Kh2 {[%clk 0:03:34.1]} 0-1

[Event "Live Chess"]
[Site "Chess.com"]
[Date "2023.05.20"]
[Round "-"]
[White "rideuv21"]
[Black "chessfiction"]
[Result "0-1"]
[WhiteElo "1826"]
[BlackElo "2421"]
[TimeControl "300"]
[EndTime "12:52:24 PDT"]
[Termination "chessfiction won by resignation"]

1. e4 {[%clk 0:04:56.4]} 1... e6 {[%clk 0:04:58.6]} 2. d4 {[%clk 0:04:54.7]}
2... d5 {[%clk 0:04:58.5]} 3. Nc3 {[%clk 0:04:53.1]} 3... Bb4 {[%clk 0:04:53.3]}
4. Bd2 {[%clk 0:04:51]} 4... Ne7 {[%clk 0:04:51]} 5. Qg4 {[%clk 0:04:47.6]} 5...
O-O {[%clk 0:04:49.6]} 6. Bd3 {[%clk 0:04:43.9]} 6... Nbc6 {[%clk 0:04:44]} 7.
Nf3 {[%clk 0:04:37.1]} 7... e5 {[%clk 0:04:40.2]} 8. Qg3 {[%clk 0:04:36]} 8...
exd4 {[%clk 0:04:38.7]} 9. Nxd5 {[%clk 0:04:34.7]} 9... Bxd2+ {[%clk 0:04:37.3]}
10. Nxd2 {[%clk 0:04:33.3]} 10... Nxd5 {[%clk 0:04:37.2]} 11. exd5 {[%clk
0:04:33.1]} 11... Re8+ {[%clk 0:04:34.2]} 12. Be4 {[%clk 0:04:23.4]} 12... Qxd5
{[%clk 0:04:34.1]} 13. O-O-O {[%clk 0:04:21.6]} 13... Qxa2 {[%clk 0:04:28.3]}
14. Rhe1 {[%clk 0:04:15.7]} 14... Be6 {[%clk 0:04:20.1]} 15. Qxc7 {[%clk
0:04:06.2]} 15... Rac8 {[%clk 0:04:18]} 16. Qf4 {[%clk 0:03:58.5]} 16... Nb4
{[%clk 0:04:15.6]} 17. Nb1 {[%clk 0:03:48.8]} 17... Qa1 {[%clk 0:04:02.9]} 18.
Rxd4 {[%clk 0:03:40.9]} 18... Na2+ {[%clk 0:04:01]} 19. Kd2 {[%clk 0:03:37.8]}
19... Qxb2 {[%clk 0:04:00.9]} 20. Bd3 {[%clk 0:03:24.2]} 20... Nc3 {[%clk
0:03:30]} 21. Nxc3 {[%clk 0:03:20.9]} 21... Qxc3+ {[%clk 0:03:28.3]} 22. Kd1
{[%clk 0:03:20.5]} 22... Bg4+ {[%clk 0:03:22.1]} 0-1

[Event "Live Chess"]
[Site "Chess.com"]
[Date "2023.05.20"]
[Round "-"]
[White "alanmike75"]
[Black "MaximKris"]
[Result "0-1"]
[WhiteElo "1533"]
[BlackElo "1845"]
[TimeControl "300"]
[EndTime "12:52:32 PDT"]
[Termination "MaximKris won by resignation"]

1. e4 {[%clk 0:04:58.9]} 1... e5 {[%clk 0:04:58.5]} 2. Nf3 {[%clk 0:04:57.3]}
2... Nc6 {[%clk 0:04:57.8]} 3. d4 {[%clk 0:04:55.9]} 3... exd4 {[%clk
0:04:57.1]} 4. Bc4 {[%clk 0:04:54.8]} 4... Bc5 {[%clk 0:04:55.6]} 5. c3 {[%clk
0:04:53.4]} 5... d6 {[%clk 0:04:54]} 6. cxd4 {[%clk 0:04:50.2]} 6... Bb4+ {[%clk
0:04:53.1]} 7. Nc3 {[%clk 0:04:49.1]} 7... Nf6 {[%clk 0:04:52.7]} 8. O-O {[%clk
0:04:47]} 8... Bg4 {[%clk 0:04:52.1]} 9. e5 {[%clk 0:04:39.3]} 9... dxe5 {[%clk
0:04:49.4]} 10. dxe5 {[%clk 0:04:38.1]} 10... Qxd1 {[%clk 0:04:48.8]} 11. Nxd1
{[%clk 0:04:29.9]} 11... Bxf3 {[%clk 0:04:48.7]} 12. exf6 {[%clk 0:04:24.8]}
12... Bxd1 {[%clk 0:04:47]} 13. Rxd1 {[%clk 0:04:22.8]} 13... gxf6 {[%clk
0:04:43.8]} 14. a3 {[%clk 0:04:17.4]} 14... Bd6 {[%clk 0:04:34.6]} 15. Bb5
{[%clk 0:04:09.5]} 15... O-O-O {[%clk 0:04:32.4]} 16. Bxc6 {[%clk 0:04:06.3]}
16... bxc6 {[%clk 0:04:30.5]} 17. Be3 {[%clk 0:04:04.9]} 17... a6 {[%clk
0:04:27]} 18. Rac1 {[%clk 0:04:03]} 18... Kb7 {[%clk 0:04:22.3]} 19. a4 {[%clk
0:03:59.5]} 19... f5 {[%clk 0:04:17.1]} 20. g3 {[%clk 0:03:57.8]} 20... Rhg8
{[%clk 0:04:15]} 21. Kf1 {[%clk 0:03:56.7]} 21... Rde8 {[%clk 0:04:12.7]} 22.
Rc2 {[%clk 0:03:49.3]} 22... Re4 {[%clk 0:04:09.4]} 23. b3 {[%clk 0:03:31.3]}
23... f4 {[%clk 0:04:04.4]} 24. gxf4 {[%clk 0:03:28.5]} 24... Bxf4 {[%clk
0:04:02.7]} 25. Bxf4 {[%clk 0:03:21.2]} 25... Rxf4 {[%clk 0:04:01.1]} 26. Rdc1
{[%clk 0:03:17.8]} 26... Rf6 {[%clk 0:03:55.5]} 27. Rc3 {[%clk 0:03:10.1]} 27...
Rd8 {[%clk 0:03:48.8]} 28. Ke2 {[%clk 0:03:06.5]} 28... Re6+ {[%clk 0:03:44.8]}
29. Re3 {[%clk 0:03:02.3]} 29... Rxe3+ {[%clk 0:03:43.2]} 30. Kxe3 {[%clk
0:02:57.1]} 30... Re8+ {[%clk 0:03:41.5]} 31. Kf3 {[%clk 0:02:54.7]} 31... Re6
{[%clk 0:03:37.6]} 32. Rc3 {[%clk 0:02:49.6]} 32... Kb6 {[%clk 0:03:32.3]} 33.
Rd3 {[%clk 0:02:40.6]} 33... Rd6 {[%clk 0:03:29.1]} 34. Re3 {[%clk 0:02:38.8]}
34... c5 {[%clk 0:03:26.4]} 35. Re7 {[%clk 0:02:37.3]} 35... Rf6+ {[%clk
0:03:24.1]} 36. Kg3 {[%clk 0:02:34.5]} 36... Rg6+ {[%clk 0:03:19.3]} 37. Kf4
{[%clk 0:02:30.5]} 37... Rf6+ {[%clk 0:03:18.8]} 38. Kg3 {[%clk 0:02:29.4]}
38... Rd6 {[%clk 0:03:16.2]} 39. Rxf7 {[%clk 0:02:25.3]} 39... Rd3+ {[%clk
0:03:15.3]} 40. Rf3 {[%clk 0:02:20]} 40... Rxf3+ {[%clk 0:03:06.6]} 41. Kxf3
{[%clk 0:02:18.3]} 41... Ka5 {[%clk 0:03:06.5]} 42. Ke3 {[%clk 0:02:17]} 42...
Kb4 {[%clk 0:03:06.4]} 43. f4 {[%clk 0:02:16.3]} 43... Kxb3 {[%clk 0:03:06.3]}
44. f5 {[%clk 0:02:15.6]} 44... c4 {[%clk 0:03:06.2]} 45. f6 {[%clk 0:02:14.8]}
45... c3 {[%clk 0:03:06.1]} 46. f7 {[%clk 0:02:14.1]} 46... c2 {[%clk
0:03:05.2]} 47. f8=Q {[%clk 0:02:10.6]} 47... c1=Q+ {[%clk 0:03:04.2]} 48. Kf2
{[%clk 0:01:35]} 48... Qc2+ {[%clk 0:02:59.7]} 49. Kg3 {[%clk 0:01:32.3]} 49...
Qg6+ {[%clk 0:02:58.6]} 50. Kf2 {[%clk 0:01:29.5]} 50... Qb6+ {[%clk 0:02:56.8]}
51. Kg3 {[%clk 0:01:27.6]} 51... Qd6+ {[%clk 0:02:55.7]} 0-1

[Event "Live Chess"]
[Site "Chess.com"]
[Date "2023.05.20"]
[Round "-"]
[White "JanMur7"]
[Black "PaulHumphreys"]
[Result "1-0"]
[WhiteElo "1949"]
[BlackElo "1363"]
[TimeControl "300"]
[EndTime "12:52:39 PDT"]
[Termination "JanMur7 won by checkmate"]

1. e4 {[%clk 0:04:58.4]} 1... c5 {[%clk 0:04:55.1]} 2. Nf3 {[%clk 0:04:57]} 2...
g6 {[%clk 0:04:51.7]} 3. d4 {[%clk 0:04:55.5]} 3... cxd4 {[%clk 0:04:51.4]} 4.
Qxd4 {[%clk 0:04:55.3]} 4... Nf6 {[%clk 0:04:49.7]} 5. e5 {[%clk 0:04:53.5]}
5... Nc6 {[%clk 0:04:49.6]} 6. Qc3 {[%clk 0:04:47.1]} 6... Nd5 {[%clk
0:04:43.8]} 7. Qb3 {[%clk 0:04:42.6]} 7... Nb6 {[%clk 0:04:25.2]} 8. a4 {[%clk
0:04:36.1]} 8... a5 {[%clk 0:04:22.8]} 9. Be3 {[%clk 0:04:31.9]} 9... Nb4 {[%clk
0:03:49.4]} 10. c3 {[%clk 0:04:21.3]} 10... N6d5 {[%clk 0:03:39.5]} 11. Bc4
{[%clk 0:04:09]} 11... Nxe3 {[%clk 0:03:33.8]} 12. Bxf7# {[%clk 0:04:06.9]} 1-0

[Event "Live Chess"]
[Site "Chess.com"]
[Date "2023.05.20"]
[Round "-"]
[White "FlyingChessKestrel13"]
[Black "viktorskliarov"]
[Result "0-1"]
[WhiteElo "2125"]
[BlackElo "2653"]
[TimeControl "300"]
[EndTime "12:52:44 PDT"]
[Termination "viktorskliarov won by resignation"]

1. e4 {[%clk 0:04:56.9]} 1... c5 {[%clk 0:04:55.9]} 2. Nc3 {[%clk 0:04:53.9]}
2... Nc6 {[%clk 0:04:55.1]} 3. g3 {[%clk 0:04:53]} 3... g6 {[%clk 0:04:54.2]} 4.
Bg2 {[%clk 0:04:52.2]} 4... Bg7 {[%clk 0:04:53.8]} 5. d3 {[%clk 0:04:51.3]} 5...
d6 {[%clk 0:04:53.4]} 6. Nge2 {[%clk 0:04:50.5]} 6... Rb8 {[%clk 0:04:51.6]} 7.
O-O {[%clk 0:04:49]} 7... b5 {[%clk 0:04:46.4]} 8. Be3 {[%clk 0:04:39.5]} 8...
b4 {[%clk 0:04:42]} 9. Na4 {[%clk 0:04:38.5]} 9... Qa5 {[%clk 0:04:30.8]} 10. c3
{[%clk 0:04:36.9]} 10... bxc3 {[%clk 0:04:30]} 11. bxc3 {[%clk 0:04:25]} 11...
Nf6 {[%clk 0:04:28.4]} 12. d4 {[%clk 0:04:16.1]} 12... Ng4 {[%clk 0:04:23.8]}
13. e5 {[%clk 0:04:07.8]} 13... Bd7 {[%clk 0:04:11.9]} 14. Rb1 {[%clk
0:02:22.8]} 14... O-O {[%clk 0:03:45.7]} 15. exd6 {[%clk 0:02:14.2]} 15... Nxe3
{[%clk 0:03:32.5]} 16. fxe3 {[%clk 0:02:09.1]} 16... Rxb1 {[%clk 0:03:29.9]} 17.
Qxb1 {[%clk 0:02:05]} 17... Qxa4 {[%clk 0:03:28.6]} 18. Qb6 {[%clk 0:01:54]} 0-1

[Event "Live Chess"]
[Site "Chess.com"]
[Date "2023.05.20"]
[Round "-"]
[White "Jonmill"]
[Black "blunderabit"]
[Result "0-1"]
[WhiteElo "1227"]
[BlackElo "1890"]
[TimeControl "300"]
[EndTime "12:53:02 PDT"]
[Termination "blunderabit won by checkmate"]

1. e4 {[%clk 0:04:58.7]} 1... c5 {[%clk 0:04:57.6]} 2. Nc3 {[%clk 0:04:57.9]}
2... Nc6 {[%clk 0:04:55.3]} 3. Bb5 {[%clk 0:04:56.2]} 3... Nd4 {[%clk
0:04:52.4]} 4. f4 {[%clk 0:04:54.6]} 4... a6 {[%clk 0:04:45.4]} 5. Be2 {[%clk
0:04:46.2]} 5... g6 {[%clk 0:04:34.3]} 6. Nf3 {[%clk 0:04:45]} 6... Bg7 {[%clk
0:04:30.5]} 7. O-O {[%clk 0:04:31.8]} 7... Nh6 {[%clk 0:03:51.3]} 8. h3 {[%clk
0:04:21.3]} 8... O-O {[%clk 0:03:42.5]} 9. e5 {[%clk 0:04:11.2]} 9... Nhf5
{[%clk 0:03:22]} 10. Ne4 {[%clk 0:04:03.6]} 10... d6 {[%clk 0:03:09.8]} 11. Nxd4
{[%clk 0:03:42.5]} 11... Nxd4 {[%clk 0:03:05.3]} 12. Bc4 {[%clk 0:03:29.3]}
12... d5 {[%clk 0:03:02.2]} 13. Nxc5 {[%clk 0:03:19]} 13... dxc4 {[%clk
0:03:00.4]} 14. c3 {[%clk 0:03:18.1]} 14... Qd5 {[%clk 0:02:39.4]} 15. cxd4
{[%clk 0:02:13]} 15... Qxd4+ {[%clk 0:02:36.5]} 16. Kh1 {[%clk 0:02:12.4]} 16...
Qxc5 {[%clk 0:02:35.2]} 17. d4 {[%clk 0:02:09.6]} 17... cxd3 {[%clk 0:02:31]}
18. Qxd3 {[%clk 0:02:08.6]} 18... Bf5 {[%clk 0:02:27.5]} 19. Qb3 {[%clk
0:01:55.3]} 19... Qb5 {[%clk 0:02:14.9]} 20. Qf3 {[%clk 0:01:42.7]} 20... Be4
{[%clk 0:01:57]} 21. Qd1 {[%clk 0:01:28.5]} 21... Rfd8 {[%clk 0:01:44.3]} 22.
Qe1 {[%clk 0:01:26.1]} 22... Qd5 {[%clk 0:01:35.5]} 23. Qg3 {[%clk 0:01:02.6]}
23... Qd3 {[%clk 0:01:11.9]} 24. Qxd3 {[%clk 0:00:53]} 24... Rxd3 {[%clk
0:01:08.6]} 25. b3 {[%clk 0:00:45.3]} 25... Rc8 {[%clk 0:00:54.6]} 26. Ba3
{[%clk 0:00:40.6]} 26... Rc2 {[%clk 0:00:48.9]} 27. Rg1 {[%clk 0:00:27.4]} 27...
Rxh3# {[%clk 0:00:46.5]} 0-1

[Event "Live Chess"]
[Site "Chess.com"]
[Date "2023.05.20"]
[Round "-"]
[White "PiotrD11"]
[Black "siddu198"]
[Result "0-1"]
[WhiteElo "1337"]
[BlackElo "1628"]
[TimeControl "300"]
[EndTime "12:53:06 PDT"]
[Termination "siddu198 won by resignation"]

1. e4 {[%clk 0:04:58.9]} 1... e5 {[%clk 0:04:59]} 2. Nf3 {[%clk 0:04:58]} 2...
Nc6 {[%clk 0:04:58.5]} 3. Bc4 {[%clk 0:04:57.5]} 3... Bc5 {[%clk 0:04:58]} 4.
O-O {[%clk 0:04:56]} 4... Nf6 {[%clk 0:04:57.6]} 5. d3 {[%clk 0:04:54.6]} 5...
O-O {[%clk 0:04:57.3]} 6. a4 {[%clk 0:04:46.9]} 6... h6 {[%clk 0:04:55.8]} 7.
Na3 {[%clk 0:04:38.3]} 7... d6 {[%clk 0:04:54.9]} 8. h3 {[%clk 0:04:35.3]} 8...
Be6 {[%clk 0:04:53]} 9. Bxe6 {[%clk 0:04:29.3]} 9... fxe6 {[%clk 0:04:52.9]} 10.
b3 {[%clk 0:04:20.8]} 10... Nh7 {[%clk 0:04:38.7]} 11. Nc4 {[%clk 0:04:16.6]}
11... Qf6 {[%clk 0:04:37]} 12. Be3 {[%clk 0:03:56.3]} 12... b6 {[%clk
0:04:22.1]} 13. Ncd2 {[%clk 0:03:44.2]} 13... Qg6 {[%clk 0:04:20.5]} 14. Nh4
{[%clk 0:03:37.2]} 14... Qf6 {[%clk 0:04:16.4]} 15. Nhf3 {[%clk 0:03:24.1]}
15... Rf7 {[%clk 0:04:14.3]} 16. c3 {[%clk 0:03:12]} 16... a5 {[%clk 0:04:08.3]}
17. d4 {[%clk 0:03:06]} 17... exd4 {[%clk 0:04:07.3]} 18. cxd4 {[%clk 0:03:05]}
18... Bxd4 {[%clk 0:04:06.4]} 19. Bxd4 {[%clk 0:03:00.8]} 19... Nxd4 {[%clk
0:04:05.6]} 20. Nxd4 {[%clk 0:02:52.5]} 20... Qxd4 {[%clk 0:04:03.9]} 21. Qe2
{[%clk 0:02:48.1]} 21... Raf8 {[%clk 0:04:01.4]} 22. Nf3 {[%clk 0:02:34.2]}
22... Qf6 {[%clk 0:03:40]} 23. Rac1 {[%clk 0:02:27.9]} 23... Qg6 {[%clk
0:03:39]} 24. Kh2 {[%clk 0:02:18.5]} 24... Ng5 {[%clk 0:03:28.9]} 25. Nh4 {[%clk
0:02:16.1]} 25... Qf6 {[%clk 0:03:24.9]} 26. Rc3 {[%clk 0:02:07.6]} 26... Qxc3
{[%clk 0:03:23.2]} 27. Ng6 {[%clk 0:02:05.2]} 27... Nf3+ {[%clk 0:03:12.1]} 28.
gxf3 {[%clk 0:02:01.6]} 28... Rxf3 {[%clk 0:03:09.4]} 29. Nxf8 {[%clk
0:01:59.5]} 29... Rxh3+ {[%clk 0:03:09]} 30. Kg2 {[%clk 0:01:54.1]} 30... Kxf8
{[%clk 0:03:00.2]} 31. f3 {[%clk 0:01:45.8]} 31... Rh5 {[%clk 0:02:51.1]} 32.
Kf2 {[%clk 0:01:35.9]} 32... Rh2+ {[%clk 0:02:46.4]} 0-1

[Event "Live Chess"]
[Site "Chess.com"]
[Date "2023.05.20"]
[Round "-"]
[White "OceanFloater"]
[Black "chessleanstrategist"]
[Result "1-0"]
[WhiteElo "982"]
[BlackElo "399"]
[TimeControl "300"]
[EndTime "12:53:14 PDT"]
[Termination "OceanFloater won on time"]

1. e4 {[%clk 0:04:57]} 1... d6 {[%clk 0:04:58.6]} 2. d4 {[%clk 0:04:53.7]} 2...
Nf6 {[%clk 0:04:55.2]} 3. Nc3 {[%clk 0:04:49.6]} 3... g6 {[%clk 0:04:33.5]} 4.
e5 {[%clk 0:04:45.5]} 4... dxe5 {[%clk 0:04:26.1]} 5. dxe5 {[%clk 0:04:42.1]}
5... Qxd1+ {[%clk 0:04:21.7]} 6. Nxd1 {[%clk 0:04:40.5]} 6... Nfd7 {[%clk
0:04:16.4]} 7. Nf3 {[%clk 0:04:38.1]} 7... Bg7 {[%clk 0:04:06.4]} 8. Bf4 {[%clk
0:04:36]} 8... Nc6 {[%clk 0:04:03.5]} 9. Bb5 {[%clk 0:04:29.1]} 9... a6 {[%clk
0:03:52.9]} 10. Bxc6 {[%clk 0:04:27.7]} 10... bxc6 {[%clk 0:03:51.4]} 11. O-O
{[%clk 0:04:24.6]} 11... O-O {[%clk 0:03:19.2]} 12. Ne3 {[%clk 0:04:12.1]} 12...
Nxe5 {[%clk 0:02:30.3]} 13. Nxe5 {[%clk 0:04:07.9]} 13... Bxe5 {[%clk
0:02:29.8]} 14. Bxe5 {[%clk 0:04:06.8]} 14... f6 {[%clk 0:02:23.7]} 15. Bxc7
{[%clk 0:04:05.2]} 15... Bb7 {[%clk 0:02:09.2]} 16. Rad1 {[%clk 0:03:58.2]}
16... e5 {[%clk 0:01:36.3]} 17. Rd6 {[%clk 0:03:51.3]} 17... Rac8 {[%clk
0:01:25.4]} 18. Bb6 {[%clk 0:03:49]} 18... f5 {[%clk 0:01:18.6]} 19. Rfd1 {[%clk
0:03:47]} 19... Rce8 {[%clk 0:00:57.2]} 20. Rd7 {[%clk 0:03:34.6]} 20... e4
{[%clk 0:00:48.3]} 21. Rxb7 {[%clk 0:03:30.1]} 21... Rb8 {[%clk 0:00:39.2]} 22.
Rxb8 {[%clk 0:03:28.5]} 22... Rxb8 {[%clk 0:00:38.8]} 23. Bd4 {[%clk 0:03:26.6]}
23... Rd8 {[%clk 0:00:36.6]} 24. b4 {[%clk 0:03:17]} 24... f4 {[%clk 0:00:30.8]}
25. Ng4 {[%clk 0:03:07.9]} 25... f3 {[%clk 0:00:17.9]} 26. gxf3 {[%clk
0:03:04.9]} 26... exf3 {[%clk 0:00:16.5]} 27. Ne5 {[%clk 0:03:03.3]} 27... Rf8
{[%clk 0:00:04.7]} 28. Nxc6 {[%clk 0:02:59.9]} 1-0

[Event "Live Chess"]
[Site "Chess.com"]
[Date "2023.05.20"]
[Round "-"]
[White "ACx04"]
[Black "LL220284LL"]
[Result "0-1"]
[WhiteElo "429"]
[BlackElo "2400"]
[TimeControl "300"]
[EndTime "12:53:17 PDT"]
[Termination "LL220284LL won by checkmate"]

1. e4 {[%clk 0:04:59.4]} 1... g5 {[%clk 0:04:57.1]} 2. Bc4 {[%clk 0:04:57.4]}
2... Bg7 {[%clk 0:04:56.3]} 3. Nf3 {[%clk 0:04:55.9]} 3... e6 {[%clk 0:04:55]}
4. Nxg5 {[%clk 0:04:54.5]} 4... Qxg5 {[%clk 0:04:53.7]} 5. O-O {[%clk 0:04:52]}
5... d5 {[%clk 0:04:52.5]} 6. exd5 {[%clk 0:04:50.6]} 6... exd5 {[%clk
0:04:52.4]} 7. Be2 {[%clk 0:04:48.7]} 7... Ne7 {[%clk 0:04:50.7]} 8. d4 {[%clk
0:04:46.9]} 8... O-O {[%clk 0:04:50.1]} 9. Bxg5 {[%clk 0:04:45.8]} 9... Nf5
{[%clk 0:04:48.5]} 10. Bg4 {[%clk 0:04:43]} 10... Nxd4 {[%clk 0:04:45.5]} 11.
Qxd4 {[%clk 0:04:41.4]} 11... Bxd4 {[%clk 0:04:44.2]} 12. Nc3 {[%clk 0:04:39.1]}
12... Bxg4 {[%clk 0:04:42.9]} 13. h3 {[%clk 0:04:36.2]} 13... Bxc3 {[%clk
0:04:41.3]} 14. bxc3 {[%clk 0:04:35]} 14... Be6 {[%clk 0:04:40.9]} 15. Bf4
{[%clk 0:04:30.7]} 15... c5 {[%clk 0:04:38.7]} 16. Bxb8 {[%clk 0:04:28]} 16...
Raxb8 {[%clk 0:04:37.7]} 17. c4 {[%clk 0:04:27.2]} 17... d4 {[%clk 0:04:36.5]}
18. Rad1 {[%clk 0:04:24.8]} 18... Bxc4 {[%clk 0:04:35.6]} 19. Rc1 {[%clk
0:04:22.1]} 19... Bxf1 {[%clk 0:04:33.8]} 20. c3 {[%clk 0:04:21.2]} 20... b5
{[%clk 0:04:33.7]} 21. cxd4 {[%clk 0:04:20.2]} 21... Bc4 {[%clk 0:04:32.5]} 22.
a3 {[%clk 0:04:18.3]} 22... cxd4 {[%clk 0:04:31.2]} 23. a4 {[%clk 0:04:16.3]}
23... d3 {[%clk 0:04:30.6]} 24. f4 {[%clk 0:04:13.8]} 24... d2 {[%clk
0:04:29.2]} 25. Rd1 {[%clk 0:04:12.5]} 25... Rfd8 {[%clk 0:04:28.8]} 26. axb5
{[%clk 0:04:10.3]} 26... Bb3 {[%clk 0:04:28.4]} 27. b6 {[%clk 0:04:09]} 27...
Bxd1 {[%clk 0:04:27.1]} 28. bxa7 {[%clk 0:04:08.3]} 28... Rb1 {[%clk 0:04:26.6]}
29. f5 {[%clk 0:04:05.4]} 29... Bf3+ {[%clk 0:04:25.4]} 30. Kh2 {[%clk
0:04:01.9]} 30... d1=Q {[%clk 0:04:25.3]} 31. Kg3 {[%clk 0:04:00]} 31... Qg1
{[%clk 0:04:23.8]} 32. Kxf3 {[%clk 0:03:57.4]} 32... Rd3+ {[%clk 0:04:23.4]} 33.
Kg4 {[%clk 0:03:54.2]} 33... Qxg2+ {[%clk 0:04:22.4]} 34. Kh4 {[%clk 0:03:52.6]}
34... Rxh3# {[%clk 0:04:20.2]} 0-1